lending/lending_fUSD_20241214
["ID","MTS","AMOUNT","RATE_DAILY","PERIOD"]
[345345887,1734166243960,-500.0,0.00021249,3]
[345345888,1734166243969,-500.0,0.00021249,3]
[345345889,1734166243978,-294.58,0.00021249,3]
[345345890,1734166243987,-500.0,0.00021249,3]
[345345891,1734166243997,-500.0,0.00021249,3]
[345345892,1734166244006,-570.01,0.00021249,3]
[345345893,1734166244015,-500.0,0.00021249,3]
[345345894,1734166244025,-500.0,0.00021249,3]
[345345895,1734166244034,-351.55,0.00021249,3]
[345345896,1734166244043,-619.68,0.00021249,3]
[345345897,1734166244052,-500.0,0.00021249,3]
[345345898,1734166244062,-283.16,0.00021249,3]
[345345899,1734166244071,-500.0,0.00021249,3]
[345345900,1734166244080,-500.0,0.00021249,3]
[345345901,1734166244089,-500.0,0.00021249,3]
[345345902,1734166244099,-500.0,0.00021249,3]
[345345903,1734166244109,-500.0,0.00021249,3]
[345345904,1734166244119,-500.0,0.00021249,3]
[345345905,1734166244128,-500.0,0.00021249,3]
[345345906,1734166244137,-500.0,0.00021249,3]
[345345907,1734166244146,-500.0,0.00021249,3]
[345345908,1734166244155,-500.0,0.00021249,3]
[345345909,1734166244164,-500.0,0.00021249,3]
[345345910,1734166244174,-500.0,0.00021249,3]
[345345911,1734166244183,-500.0,0.00021249,3]
[345345912,1734166244192,-500.0,0.00021249,3]
[345345913,1734166244202,-185.66,0.00021249,3]
[345345914,1734166244211,-522.0,0.00021249,3]
[345345915,1734166244221,-500.0,0.00021249,3]
[345345916,1734166244235,-500.0,0.00021249,3]
[345345917,1734166244245,-500.0,0.00021249,3]
[345345918,1734166244254,-260.68,0.00021249,3]
[345345919,1734166244263,-500.0,0.00021249,3]
[345345920,1734166244274,-570.56,0.00021249,3]
[345345921,1734166244283,-500.0,0.00021249,3]
[345345922,1734166244293,-500.0,0.00021249,3]
[345345923,1734166244303,-500.0,0.00021249,3]
[345345924,1734166244313,-500.0,0.00021249,3]
[345345925,1734166244323,-500.0,0.00021249,3]
[345345926,1734166244332,-485.47342198,0.00021249,3]
[345345927,1734166244341,-444.1174448,0.00021249,3]
[345345928,1734166244352,-500.0,0.00021249,3]
[345345929,1734166244363,-500.0,0.00021249,3]
[345345930,1734166244372,-500.0,0.00021249,3]
[345345931,1734166244382,-500.0,0.00021249,3]
[345345932,1734166244391,-500.0,0.00021249,3]
[345345933,1734166244401,-500.0,0.00021249,3]
[345345934,1734166244410,-500.0,0.00021249,3]
[345345935,1734166244420,-500.0,0.00021249,3]
[345345936,1734166244430,-500.0,0.00021249,3]
[345345937,1734166244440,-500.0,0.00021249,3]
[345345938,1734166244449,-500.0,0.00021249,3]
[345345939,1734166244460,-500.0,0.00021249,3]
[345345940,1734166244469,-181.27,0.00021249,3]
[345345941,1734166244480,-500.0,0.00021249,3]
[345345942,1734166244489,-500.0,0.00021249,3]
[345345943,1734166244499,-500.0,0.00021249,3]
[345345944,1734166244509,-500.0,0.00021249,3]
[345345945,1734166244518,-172.85,0.00021249,3]
[345345946,1734166244528,-500.0,0.00021249,3]
[345345947,1734166244538,-500.0,0.00021249,3]
[345345948,1734166244547,-500.0,0.00021249,3]
[345345949,1734166244556,-500.0,0.00021249,3]
[345345950,1734166244566,-500.0,0.00021249,3]
[345345951,1734166244576,-500.0,0.00021249,3]
[345345952,1734166244584,-500.0,0.00021249,3]
[345345953,1734166244594,-500.0,0.00021249,3]
[345345954,1734166244603,-500.0,0.00021249,3]
[345345955,1734166244612,-500.0,0.00021249,3]
[345345956,1734166244622,-236.06,0.00021249,3]
[345345957,1734166244631,-500.0,0.00021249,3]
[345345958,1734166244641,-500.0,0.00021249,3]
[345345959,1734166244650,-500.0,0.00021249,3]
[345345960,1734166244660,-500.0,0.00021249,3]
[345345961,1734166244674,-500.0,0.00021249,3]
[345345962,1734166244684,-500.0,0.00021249,3]
[345345963,1734166244694,-500.0,0.00021249,3]
[345345964,1734166244703,-500.0,0.00021249,3]
[345345965,1734166244712,-500.0,0.00021249,3]
[345345966,1734166244721,-500.0,0.00021249,3]
[345345967,1734166244742,-500.0,0.00021249,3]
[345345968,1734166244751,-500.0,0.00021249,3]
[345345969,1734166244761,-500.0,0.00021249,3]
[345345970,1734166244771,-500.0,0.00021249,3]
[345345971,1734166244780,-500.0,0.00021249,3]
[345345972,1734166244790,-500.0,0.00021249,3]
[345345973,1734166244800,-500.0,0.00021249,3]
[345345974,1734166244809,-649.94,0.00021249,3]
[345345975,1734166244819,-391.76,0.00021249,3]
[345345976,1734166244829,-500.0,0.00021249,3]
[345345977,1734166244838,-294.1,0.00021249,3]
[345345978,1734166244848,-500.0,0.00021249,3]
[345345979,1734166244859,-500.0,0.00021249,3]
[345345980,1734166244868,-437.09,0.00021249,3]
[345345981,1734166244878,-500.0,0.00021249,3]
[345345982,1734166244887,-500.0,0.00021249,3]
[345345983,1734166244897,-500.0,0.00021249,3]
[345345984,1734166244906,-500.0,0.00021249,3]
[345345985,1734166244916,-500.0,0.00021249,3]
[345345986,1734166244925,-500.0,0.00021249,3]
[345345987,1734166244934,-405.91197111,0.00021249,3]
[345345988,1734166244944,-500.0,0.00021249,3]
[345345989,1734166244953,-500.0,0.00021249,3]
[345345990,1734166244962,-500.0,0.00021249,3]
[345345991,1734166244971,-500.0,0.00021249,3]
[345345992,1734166244981,-500.0,0.00021249,3]
[345345993,1734166244990,-500.0,0.00021249,3]
[345345994,1734166245000,-528.63,0.00021249,3]
[345345995,1734166245010,-500.0,0.00021249,3]
[345345996,1734166245019,-500.0,0.00021249,3]
[345345997,1734166245029,-500.0,0.00021249,3]
[345345998,1734166245038,-500.0,0.00021249,3]
[345345999,1734166245047,-500.0,0.00021249,3]
[345346000,1734166245057,-500.0,0.00021249,3]
[345346001,1734166245067,-581.24,0.00021249,3]
[345346002,1734166245076,-500.0,0.00021249,3]
[345346003,1734166245086,-510.21,0.00021249,3]
[345346004,1734166245095,-500.0,0.00021249,3]
[345346005,1734166245105,-500.0,0.00021249,3]
[345346006,1734166245114,-529.88000001,0.00021249,3]
[345346007,1734166245123,-252.54,0.00021249,3]
[345346008,1734166245133,-339.2,0.00021249,3]
[345346009,1734166245143,-500.0,0.00021249,3]
[345346010,1734166245153,-500.0,0.00021249,3]
[345346011,1734166245273,-336.43,0.00021249,3]
[345346012,1734166245284,-500.0,0.00021249,3]
[345346013,1734166245294,-500.0,0.00021249,3]
[345346014,1734166245303,-500.0,0.00021249,3]
[345346015,1734166245312,-501.75,0.00021249,3]
[345346016,1734166245322,-151.044357,0.00021249,7]
[345346017,1734166245331,-500.0,0.00021249,3]
[345346018,1734166245341,-500.0,0.00021249,3]
[345346019,1734166245351,-500.0,0.00021249,3]
[345346020,1734166245361,-500.0,0.00021249,3]
[345346021,1734166245371,-500.0,0.00021249,3]
[345346022,1734166245382,-2000.0,0.00021249,2]
[345346023,1734166245391,-500.0,0.00021249,3]
[345346024,1734166245401,-500.0,0.00021249,3]
[345346025,1734166245410,-500.0,0.00021249,3]
[345346026,1734166245419,-500.0,0.00021249,3]
[345346027,1734166245428,-500.0,0.00021249,3]
[345346028,1734166245439,-292.56,0.00021249,3]
[345346029,1734166245449,-500.0,0.00021249,3]
[345346031,1734166245459,-500.0,0.00021249,3]
[345346033,1734166245468,-500.0,0.00021249,3]
[345346035,1734166245478,-500.0,0.00021249,3]
[345346038,1734166245491,-500.0,0.00021249,3]
[345346040,1734166245501,-630.06,0.00021249,3]
[345346042,1734166245510,-500.0,0.00021249,3]
[345346044,1734166245519,-500.0,0.00021249,3]
[345346045,1734166245529,-500.0,0.00021249,3]
[345346047,1734166245538,-500.0,0.00021249,3]
[345346049,1734166245548,-500.0,0.00021249,3]
[345346051,1734166245558,-500.0,0.00021249,3]
[345346053,1734166245568,-500.0,0.00021249,3]
[345346056,1734166245578,-500.0,0.00021249,3]
[345346058,1734166245587,-500.0,0.00021249,3]
[345346060,1734166245597,-500.0,0.00021249,3]
[345346062,1734166245608,-500.0,0.00021249,3]
[345346064,1734166245617,-500.0,0.00021249,3]
[345346066,1734166245627,-500.0,0.00021249,3]
[345346068,1734166245636,-500.0,0.00021249,3]
[345346070,1734166245645,-500.0,0.00021249,3]
[345346072,1734166245655,-500.0,0.00021249,3]
[345346074,1734166245665,-500.0,0.00021249,3]
[345346076,1734166245674,-500.0,0.00021249,3]
[345346078,1734166245684,-466.36,0.00021249,3]
[345346080,1734166245696,-500.0,0.00021249,3]
[345346081,1734166245705,-500.0,0.00021249,3]
[345346082,1734166245716,-500.0,0.00021249,3]
[345346084,1734166245732,-370.09,0.00021249,3]
[345346085,1734166245742,-500.0,0.00021249,3]
[345346087,1734166245752,-500.0,0.00021249,3]
[345346089,1734166245761,-500.0,0.00021249,3]
[345346090,1734166245771,-500.0,0.00021249,3]
[345346091,1734166245781,-500.0,0.00021249,3]
[345346092,1734166245790,-500.0,0.00021249,3]
[345346093,1734166245799,-500.0,0.00021249,3]
[345346094,1734166245809,-500.0,0.00021249,3]
[345346095,1734166245818,-500.0,0.00021249,3]
[345346096,1734166245827,-320.7,0.00021249,3]
[345346097,1734166245836,-5112.06,0.00021249,3]
[345346098,1734166245846,-384.16021429,0.00021249,3]
[345346099,1734166245856,-5112.06,0.00021249,3]
[345346100,1734166245868,-20000.0,0.00021249,3]
[345346101,1734166245878,-160064.18981097,0.0002125,4]
[345346102,1734166245888,-4633.6645752,0.0002125,2]
[345346103,1734166245898,-6283.1812228,0.0002125,2]
[345346104,1734166245908,-751.0,0.0002125,2]
[345346105,1734166245918,-212807.0,0.0002125,2]
[345346106,1734166245927,-7165088.90161613,0.0002125,2]
[345346107,1734166245937,-150.019,0.0002125,2]
[345346108,1734166245946,-11567245.03220111,0.0002125,2]
[345346109,1734166246138,-3162.22734163,0.0002125,2]
[345346110,1734166246153,-500.0,0.00021248,3]
[345346111,1734166246162,-10386.25860881,0.0002125,2]
[345346112,1734166246177,-9227.37601,0.0002125,2]
[345346113,1734166246837,-2483.70745792,0.0002125,2]
[345346114,1734166246852,-5112.06,0.00021249,3]
[345346115,1734166246863,-34849.95907285,0.0002125,2]
[345346116,1734166246886,-500.0,0.00021249,3]
[345346117,1734166246895,-216.19999999,0.0002125,2]
[345346118,1734166246962,-5112.06,0.00021249,3]
[345346119,1734166246972,-280.8141407,0.00021249,3]
[345346120,1734166246983,-219.1858593,0.00021249,3]
[345346121,1734166246992,-31.12164077,0.00021249,3]
[345346122,1734166247011,-2209.32461316,0.00021249,3]
[345346123,1734166247037,-1499.2736,0.00021249,3]
[345346124,1734166247048,-1372.34014607,0.00021249,3]
[345346125,1734166247058,-1966.54465094,0.00021249,3]
[345346126,1734166247069,-3145.51534906,0.00021249,3]
[345346127,1734166247079,-150.0,0.00021249,2]
[345346128,1734166247088,-5112.06,0.00021249,3]
[345346129,1734166247098,-5112.06,0.00021249,3]
[345346130,1734166247108,-5112.06,0.00021249,3]
[345346131,1734166247117,-5112.06,0.00021249,3]
[345346132,1734166247127,-52800.46521181,0.0002125,2]
[345346133,1734166247301,-79.00184995,0.00021248,3]
[345346134,1734166247321,-420.99815005,0.00021248,3]
[345346135,1734166247330,-199.07584995,0.00021248,3]
[345346136,1734166247369,-300.92415005,0.00021248,3]
[345346137,1734166247379,-500.0,0.00021248,3]
[345346138,1734166247388,-5112.06,0.00021249,3]
[345346139,1734166247397,-5112.06,0.00021249,3]
[345346140,1734166247407,-5112.06,0.00021249,3]
[345346141,1734166247416,-2537.98742631,0.00021249,3]
[345346142,1734166247428,-2574.07257369,0.00021249,3]
[345346143,1734166247438,-1.87121887,0.00021249,3]
[345346144,1734166247449,-5110.18878113,0.00021249,3]
[345346145,1734166247458,-2604.94496573,0.00021249,3]
[345346146,1734166247469,-1108.46,0.00021249,3]
[345346147,1734166247517,-500.0,0.00021248,3]
[345346148,1734166247526,-500.0,0.00021248,3]
[345346149,1734166247536,-500.0,0.00021248,3]
[345346150,1734166247546,-13.89918871,0.00021249,3]
[345346151,1734166247557,-1384.75584556,0.00021249,3]
[345346152,1734166247568,-5112.06,0.00021249,3]
[345346153,1734166247577,-5112.06,0.00021249,3]
[345346154,1734166247586,-5112.06,0.00021249,3]
[345346155,1734166247595,-5112.06,0.00021249,3]
[345346156,1734166247604,-5112.06,0.00021249,3]
[345346157,1734166247614,-500.0,0.00021249,3]
[345346158,1734166247623,-5112.06,0.00021249,3]
[345346159,1734166247632,-5112.13766424,0.00021249,3]
[345346160,1734166247641,-36664.21924587,0.0002125,2]
[345346161,1734166247653,-5139.12407051,0.0002125,2]
[345346162,1734166247665,-918130.98706557,0.0002125,2]
[345346163,1734166247676,-4083.39026736,0.0002125,2]
[345346164,1734166247689,-2801.07059239,0.0002125,2]
[345346165,1734166247700,-122210.43295195,0.0002125,2]
[345346166,1734166346108,500.0,0.00017414,2]
[345346167,1734166391106,515506.2274943,0.00015,2]
[345346168,1734166486604,179.85,0.00013699,2]
[345346169,1734166962074,157.84,0.00010137,2]
[345346171,1734167230331,-312.12748725,0.0001732,2]
[345346192,1734167330349,1122.79,0.00019173,120]
[345346194,1734167348966,179.85,0.00013699,2]
[345346195,1734167358913,-364.88251275,0.0001732,2]
[345346196,1734167387817,1766.62169256,0.0001909,2]
[345346206,1734167431845,-1199.86,0.00019178,5]
[345346207,1734167431854,-1342.91475,0.0001919,2]
[345346208,1734167432006,-780.85525,0.0001919,2]
[345346209,1734167432015,-176.70032787,0.00019234,2]
[345346210,1734167432115,-84.05967213,0.00019234,2]
[345346211,1734167432124,-163.49,0.00019254,2]
[345346212,1734167432133,-250.0,0.00019256,2]
[345346213,1734167432143,-250.0,0.00019276,2]
[345346214,1734167432152,-92.09032787,0.00019276,2]
[345346215,1734167432171,-579.88967213,0.00019276,2]
[345346216,1734167432180,-200.0,0.00019276,2]
[345346217,1734167432189,-82.86032787,0.00019297,2]
[345346218,1734167432199,-426.26967213,0.00019297,2]
[345346219,1734167432209,-168.88,0.00019314,2]
[345346220,1734167432219,-1199.86,0.00019452,6]
[345346221,1734167432228,-2751.0,0.00019546,2]
[345346222,1734167432237,-4495.9693991,0.00019548,2]
[345346252,1734167437818,-15943.5606009,0.00019548,2]
[345346253,1734167437827,-500.0,0.00019551,3]
[345346254,1734167437836,-677.01,0.00019583,2]
[345346255,1734167437845,-500.0,0.00019606,2]
[345346256,1734167437854,-1199.86,0.00019726,7]
[345346257,1734167437863,-1199.86,0.0002,8]
[345346258,1734167437873,-653062.05066358,0.0002,2]
[345346259,1734167437882,-234.72,0.00020132,2]
[345346260,1734167437891,-234.72,0.00020137,2]
[345346261,1734167437900,-234.72,0.00020142,2]
[345346262,1734167437910,-234.72,0.00020148,2]
[345346263,1734167437928,-234.72,0.00020153,2]
[345346264,1734167437937,-150.0,0.00020158,2]
[345346265,1734167437946,-234.72,0.00020158,2]
[345346266,1734167437956,-1000.0,0.00020159,2]
[345346267,1734167437965,-234.72,0.00020164,2]
[345346268,1734167437974,-234.72,0.00020169,2]
[345346269,1734167437983,-234.72,0.00020174,2]
[345346270,1734167437992,-234.72,0.00020179,2]
[345346271,1734167438001,-234.72,0.00020185,2]
[345346272,1734167438011,-234.72,0.0002019,2]
[345346273,1734167438019,-272.969,0.0002019,2]
[345346274,1734167438028,-234.72,0.00020195,2]
[345346275,1734167438037,-234.72,0.00020201,2]
[345346276,1734167438046,-234.72,0.00020206,2]
[345346277,1734167438055,-234.72,0.00020211,2]
[345346278,1734167438064,-234.72,0.00020216,2]
[345346279,1734167438073,-234.72,0.00020222,2]
[345346280,1734167438082,-234.72,0.00020227,2]
[345346281,1734167438092,-234.72,0.00020232,2]
[345346282,1734167438101,-1199.86,0.00020273,9]
[345346283,1734167438110,-9790.35,0.00020312,2]
[345346284,1734167438120,-150.0,0.00020346,2]
[345346285,1734167438129,-150.0,0.00020346,2]
[345346286,1734167438140,-150.0,0.00020346,2]
[345346287,1734167438150,-150.0,0.00020346,2]
[345346288,1734167438160,-150.0,0.00020346,2]
[345346289,1734167438170,-409.0,0.000204,2]
[345346290,1734167438179,-1199.86,0.00020547,10]
[345346291,1734167438188,-302.87,0.00020578,2]
[345346292,1734167438197,-163.49,0.00020678,2]
[345346293,1734167438206,-1199.86,0.00020821,11]
[345346294,1734167438216,-300.49008117,0.000209,5]
[345346295,1734167438225,-500.0,0.00020973,2]
[345346296,1734167438235,-500.0,0.00020973,2]
[345346297,1734167438244,-238.64306424,0.00020999,2]
[345346298,1734167438253,-20000.0,0.00021,3]
[345346299,1734167438262,-45608.71586624,0.00021,2]
[345346300,1734167438272,-1128035.22061129,0.00021,2]
[345346301,1734167438281,-150.0,0.00021034,2]
[345346302,1734167438290,-339.454,0.00021044,2]
[345346303,1734167438299,-2000.0,0.0002108,2]
[345346304,1734167438308,-500.0,0.0002108,2]
[345346305,1734167438317,-500.0,0.00021095,3]
[345346307,1734167438327,-1199.86,0.00021095,12]
[345346310,1734167438336,-500.0,0.00021095,3]
[345346311,1734167438345,-500.0,0.00021095,3]
[345346313,1734167438354,-500.0,0.00021095,3]
[345346315,1734167438363,-570.01,0.00021095,3]
[345346317,1734167438372,-500.0,0.00021095,3]
[345346320,1734167438382,-500.0,0.00021095,3]
[345346323,1734167438391,-500.0,0.00021095,3]
[345346325,1734167438400,-500.0,0.00021095,3]
[345346327,1734167438409,-500.0,0.00021095,3]
[345346329,1734167438420,-500.0,0.00021095,3]
[345346331,1734167438430,-500.0,0.00021095,3]
[345346333,1734167438439,-531.99473654,0.00021095,3]
[345346335,1734167438448,-500.0,0.00021095,3]
[345346337,1734167438457,-222.96,0.00021095,3]
[345346339,1734167438466,-500.0,0.00021095,3]
[345346341,1734167438475,-500.0,0.00021095,3]
[345346343,1734167438483,-500.0,0.00021095,3]
[345346345,1734167438493,-500.0,0.00021095,3]
[345346347,1734167438502,-500.0,0.00021095,3]
[345346349,1734167438510,-500.0,0.00021095,3]
[345346351,1734167438519,-500.0,0.00021095,3]
[345346353,1734167438528,-522.0,0.00021095,3]
[345346355,1734167438537,-500.0,0.00021095,3]
[345346357,1734167438547,-500.0,0.00021095,3]
[345346359,1734167438555,-500.0,0.00021095,3]
[345346361,1734167438565,-500.0,0.00021095,3]
[345346363,1734167438574,-500.0,0.00021095,3]
[345346365,1734167438583,-500.0,0.00021095,3]
[345346367,1734167438592,-500.0,0.00021095,3]
[345346369,1734167438601,-439.39521296,0.00021095,3]
[345346371,1734167438610,-500.0,0.00021095,3]
[345346373,1734167438619,-500.0,0.00021095,3]
[345346375,1734167438628,-500.0,0.00021095,3]
[345346377,1734167438637,-500.0,0.00021095,3]
[345346379,1734167438646,-500.0,0.00021095,3]
[345346381,1734167438655,-500.0,0.00021095,3]
[345346383,1734167438664,-500.0,0.00021095,3]
[345346385,1734167438673,-161.58818795,0.00021095,3]
[345346387,1734167438683,-500.0,0.00021095,3]
[345346389,1734167438692,-500.0,0.00021095,3]
[345346391,1734167438701,-500.0,0.00021095,3]
[345346393,1734167438710,-500.0,0.00021095,3]
[345346395,1734167438719,-500.0,0.00021095,3]
[345346396,1734167438729,-445.88,0.00021095,3]
[345346398,1734167438741,-500.0,0.00021095,3]
[345346401,1734167438750,-500.0,0.00021095,3]
[345346402,1734167438759,-500.0,0.00021095,3]
[345346404,1734167438768,-500.0,0.00021095,3]
[345346407,1734167438778,-500.0,0.00021095,3]
[345346409,1734167438795,-500.0,0.00021095,3]
[345346411,1734167438810,-500.0,0.00021095,3]
[345346413,1734167438821,-500.0,0.00021095,3]
[345346415,1734167438830,-500.0,0.00021095,3]
[345346417,1734167438839,-162.48,0.00021095,3]
[345346419,1734167438848,-500.0,0.00021095,3]
[345346421,1734167438857,-500.0,0.00021095,3]
[345346423,1734167438866,-500.0,0.00021095,3]
[345346425,1734167438875,-500.0,0.00021095,3]
[345346427,1734167438885,-500.0,0.00021095,3]
[345346429,1734167438894,-500.0,0.00021095,3]
[345346431,1734167438903,-500.0,0.00021095,3]
[345346433,1734167438914,-500.0,0.00021095,3]
[345346435,1734167438923,-500.0,0.00021095,3]
[345346437,1734167438932,-500.0,0.00021095,3]
[345346439,1734167438942,-500.0,0.00021095,3]
[345346441,1734167438951,-500.0,0.00021095,3]
[345346443,1734167438961,-500.0,0.00021095,3]
[345346445,1734167438970,-500.0,0.00021095,3]
[345346447,1734167438979,-500.0,0.00021095,3]
[345346449,1734167438988,-500.0,0.00021095,3]
[345346451,1734167438998,-500.0,0.00021095,3]
[345346453,1734167439007,-500.0,0.00021095,3]
[345346455,1734167439016,-500.0,0.00021095,3]
[345346457,1734167439025,-500.0,0.00021095,3]
[345346459,1734167439034,-500.0,0.00021095,3]
[345346460,1734167439043,-500.0,0.00021095,3]
[345346463,1734167439052,-500.0,0.00021095,3]
[345346464,1734167439061,-589.46854947,0.00021095,3]
[345346466,1734167439070,-500.0,0.00021095,3]
[345346468,1734167439079,-500.0,0.00021095,3]
[345346470,1734167439088,-500.0,0.00021095,3]
[345346472,1734167439097,-500.0,0.00021095,3]
[345346474,1734167439107,-500.0,0.00021095,3]
[345346476,1734167439116,-371.9885681,0.00021095,3]
[345346478,1734167439125,-500.0,0.00021095,3]
[345346480,1734167439135,-500.0,0.00021095,3]
[345346482,1734167439145,-500.0,0.00021095,3]
[345346484,1734167439154,-494.72,0.00021095,3]
[345346486,1734167439163,-500.0,0.00021095,3]
[345346488,1734167439173,-500.0,0.00021095,3]
[345346490,1734167439182,-500.0,0.00021095,3]
[345346492,1734167439191,-500.0,0.00021095,3]
[345346494,1734167439201,-500.0,0.00021095,3]
[345346496,1734167439210,-500.0,0.00021095,3]
[345346498,1734167439219,-500.0,0.00021095,3]
[345346500,1734167439229,-500.0,0.00021095,3]
[345346502,1734167439238,-500.0,0.00021095,3]
[345346504,1734167439248,-500.0,0.00021095,3]
[345346507,1734167439257,-500.0,0.00021095,3]
[345346508,1734167439266,-500.0,0.00021095,3]
[345346510,1734167439275,-500.0,0.00021095,3]
[345346512,1734167439284,-500.0,0.00021095,3]
[345346514,1734167439293,-500.0,0.00021095,3]
[345346516,1734167439303,-277.55,0.00021095,3]
[345346519,1734167439312,-500.0,0.00021095,3]
[345346521,1734167439321,-500.0,0.00021095,3]
[345346523,1734167439330,-500.0,0.00021095,3]
[345346525,1734167439340,-500.0,0.00021095,3]
[345346526,1734167439349,-500.0,0.00021095,3]
[345346528,1734167439358,-500.0,0.00021095,3]
[345346530,1734167439367,-500.0,0.00021095,3]
[345346533,1734167439376,-500.0,0.00021095,3]
[345346534,1734167439386,-500.0,0.00021095,3]
[345346536,1734167439395,-500.0,0.00021095,3]
[345346539,1734167439404,-500.0,0.00021095,3]
[345346540,1734167439414,-526.4,0.00021095,3]
[345346543,1734167439423,-500.0,0.00021095,3]
[345346545,1734167439433,-500.0,0.00021095,3]
[345346547,1734167439442,-500.0,0.00021095,3]
[345346549,1734167439451,-500.0,0.00021095,3]
[345346551,1734167439460,-500.0,0.00021095,3]
[345346553,1734167439469,-500.0,0.00021095,3]
[345346555,1734167439478,-500.0,0.00021095,3]
[345346557,1734167439487,-500.0,0.00021095,3]
[345346558,1734167439496,-500.0,0.00021095,3]
[345346560,1734167439506,-577.41269597,0.00021095,3]
[345346562,1734167439515,-500.0,0.00021095,3]
[345346564,1734167439524,-500.0,0.00021095,3]
[345346566,1734167439533,-500.0,0.00021095,3]
[345346568,1734167439542,-500.0,0.00021095,3]
[345346570,1734167439551,-500.0,0.00021095,3]
[345346572,1734167439561,-500.0,0.00021095,3]
[345346574,1734167439570,-500.0,0.00021095,3]
[345346576,1734167439579,-500.0,0.00021095,3]
[345346578,1734167439588,-500.0,0.00021095,3]
[345346580,1734167439597,-500.0,0.00021095,3]
[345346582,1734167439607,-500.0,0.00021095,3]
[345346584,1734167439616,-500.0,0.00021095,3]
[345346586,1734167439625,-646.79,0.00021095,3]
[345346588,1734167439634,-500.0,0.00021095,3]
[345346590,1734167439643,-500.0,0.00021095,3]
[345346592,1734167439652,-500.0,0.00021095,3]
[345346594,1734167439661,-500.0,0.00021095,3]
[345346596,1734167439671,-500.0,0.00021095,3]
[345346598,1734167439681,-500.0,0.00021095,3]
[345346600,1734167439691,-197.81,0.00021095,3]
[345346602,1734167439700,-500.0,0.00021095,3]
[345346604,1734167439709,-500.0,0.00021095,3]
[345346605,1734167439718,-500.0,0.00021095,3]
[345346607,1734167439728,-500.0,0.00021095,3]
[345346609,1734167439740,-232.51,0.00021095,3]
[345346611,1734167439749,-500.0,0.00021095,3]
[345346613,1734167439759,-500.0,0.00021095,3]
[345346615,1734167439769,-500.0,0.00021095,3]
[345346617,1734167439778,-500.0,0.00021095,3]
[345346619,1734167439787,-500.0,0.00021095,3]
[345346620,1734167439795,-500.0,0.00021095,3]
[345346621,1734167439805,-500.0,0.00021095,3]
[345346622,1734167439815,-500.0,0.00021095,3]
[345346623,1734167439824,-500.0,0.00021095,3]
[345346624,1734167439834,-500.0,0.00021095,3]
[345346625,1734167439843,-500.0,0.00021095,3]
[345346626,1734167439852,-500.0,0.00021095,3]
[345346627,1734167439862,-309.01679724,0.00021095,3]
[345346637,1734167440008,-500.0,0.00021095,3]
[345346639,1734167440018,-500.0,0.00021095,3]
[345346641,1734167440027,-500.0,0.00021095,3]
[345346643,1734167440037,-547.52,0.00021095,3]
[345346645,1734167440046,-500.0,0.00021095,3]